lending/lending_fUSD_20241007
["ID","MTS","AMOUNT","RATE_DAILY","PERIOD"]
[340003901,1728319840235,-300.22885422,0.00011,2]
[340003923,1728319840450,-1256.8455316,0.00011,2]
[340004017,1728319842452,-133236.65201993,0.00011,2]
[340004018,1728319842467,-25669.43767061,0.00011,2]
[340004019,1728319842482,-128040.20082042,0.00011,2]
[340004020,1728319842491,-500.0,0.00011,2]
[340004021,1728319842500,-500.0,0.00011,2]
[340004022,1728319842510,-770.0,0.00011,2]
[340004023,1728319842521,-62315.56516515,0.00011,2]
[340004038,1728319843135,-674.96596297,0.00011,2]
[340004042,1728319843191,-22212.84406301,0.00011,2]
[340004051,1728319843437,-1949.26076743,0.00011,2]
[340004052,1728319843452,-15843.63179293,0.00011,2]
[340004053,1728319843470,-303.77,0.00011,2]
[340004054,1728319843480,-512.00786555,0.00011,2]
[340004064,1728319843691,-343049.84796101,0.00011,2]
[340004066,1728319843702,-701.666667,0.00011,2]
[340004068,1728319843720,-1400461.20802955,0.00011,2]
[340004069,1728319843731,-1006.62630079,0.00011,2]
[340004070,1728319843743,-352.72799642,0.00011,2]
[340004071,1728319843754,-584.94556398,0.00011,2]
[340004072,1728319843765,-513.18500005,0.00011,2]
[340004073,1728319843776,-1130.77964873,0.00011,2]
[340004074,1728319843791,-3730.82480496,0.00011,2]
[340004075,1728319843802,-3799.999993,0.00011,2]
[340004076,1728319843812,-2743.43994,0.00011,2]
[340004078,1728319843823,-835.04991627,0.00011,2]
[340004080,1728319843834,-1269.9797806,0.00011,2]
[340004082,1728319843844,-1175.26064,0.00011,2]
[340004084,1728319843859,-932.50624994,0.00011,2]
[340004086,1728319843870,-5150.83994801,0.00011,2]
[340004088,1728319843881,-135729.98338126,0.00011,2]
[340004090,1728319843892,-674.74381166,0.00011,2]
[340004092,1728319843907,-660.19,0.00011,2]
[340004094,1728319843919,-2204.45423647,0.00011,2]
[340004096,1728319843930,-2460.59381065,0.00011,2]
[340004098,1728319843941,-489.29187735,0.00011,2]
[340004100,1728319843955,-3075.72210345,0.00011,2]
[340004102,1728319843967,-5403.05417497,0.00011,2]
[340004124,1728319846121,-518.0,0.00011,2]
[340004125,1728319846130,-2770.62115867,0.00011,2]
[340004126,1728319846231,-335.23446328,0.00011,2]
[340004127,1728319846242,-1078.57073008,0.00011,2]
[340004128,1728319846252,-12484.11238078,0.00011,2]
[340004129,1728319846263,-355.18249125,0.00011,2]
[340004167,1728319846864,-59040.52871316,0.00011,2]
[340004169,1728319846878,-61832.4513374,0.00011,2]
[340004171,1728319846895,-315.79999999,0.00011,2]
[340004174,1728319846914,-1650.24238056,0.00011,2]
[340004294,1728319922733,591.73,9.176e-05,2]
[340004295,1728320028844,200.0,0.00010179,2]
[340004296,1728320098213,23900.0,9.858e-05,2]
[340004297,1728320129314,217.4,9.858e-05,2]
[340004298,1728320154282,200.0,0.00010069,2]
[340004299,1728320239576,455.9,9.852e-05,2]
[340004300,1728320239864,1000.0,9.852e-05,2]
[340004301,1728320278080,600.53,9.855e-05,2]
[340004302,1728320292886,1497.25,9.856e-05,2]
[340004303,1728320374578,906.57,9.846e-05,2]
[340004304,1728320397811,250.0,9.853e-05,2]
[340004305,1728320416225,193.76,9.853e-05,2]
[340004306,1728320428469,983.47,9.818e-05,2]
[340004307,1728320430487,806.36,9.816e-05,2]
[340004308,1728320443385,216.83,9.81e-05,2]
[340004309,1728320477422,661.75,8.219e-05,2]
[340004310,1728320480394,947.28,9.806e-05,2]
[340004311,1728320515652,190.39,9.806e-05,2]
[340004312,1728320516250,250.0,9.806e-05,2]
[340004313,1728320579010,1114.77,9.802e-05,2]
[340004314,1728320621486,23900.0,9.802e-05,2]
[340004315,1728320745588,150.0,9.888e-05,2]
[340004316,1728320745928,150.0,0.00010162,2]
[340004317,1728320767856,200.0,9.798e-05,2]
[340004318,1728320954531,250.0,9.781e-05,2]
[340004343,1728320997682,668.5,8.219e-05,2]
[340004344,1728320997914,185.80862337,0.00010158,2]
[340004345,1728321022489,403.18,9.852e-05,2]
[340004348,1728321032288,-300.0,0.00010357,2]
[340004349,1728321032299,-178.8,0.00010357,2]
[340004350,1728321032308,-150.0,0.00010437,2]
[340004351,1728321032317,-668.5,0.00010468,2]
[340004352,1728321032328,-185.80862337,0.0001059,2]
[340004353,1728321032341,-56.54870373,0.0001059,2]
[340004354,1728321032353,-7776.89948567,0.0001059,2]
[340004355,1728321032364,-908.35390934,0.0001059,2]
[340004356,1728321032373,-150.0,0.00010689,2]
[340004357,1728321032383,-499.99,0.00010689,2]
[340004358,1728321032392,-1907.1495,0.0001069,2]
[340004359,1728321032401,-134.50659066,0.0001069,2]
[340004360,1728321032413,-687.15034836,0.0001069,2]
[340004361,1728321032423,-407.9163117,0.0001069,2]
[340004362,1728321032435,-714.46336982,0.0001069,2]
[340004363,1728321032446,-15690.89337946,0.0001069,2]
[340004364,1728321032455,-325.3,0.0001069,2]
[340004365,1728321032465,-472.26,0.0001069,2]
[340004366,1728321032475,-150.99,0.0001069,2]
[340004367,1728321032484,-2222.20870657,0.0001069,2]
[340004368,1728321032495,-3186.53480063,0.0001069,2]
[340004369,1728321032506,-2799.1664928,0.0001069,2]
[340004370,1728321032515,-184.0,0.0001069,2]
[340004371,1728321032524,-2000.01103084,0.0001069,2]
[340004372,1728321032535,-814.99724662,0.0001069,2]
[340004373,1728321032550,-1335.27392991,0.0001069,2]
[340004374,1728321032561,-4507.06363913,0.0001069,2]
[340004375,1728321032572,-960.92161359,0.0001069,2]
[340004376,1728321032583,-1674.56555788,0.0001069,2]
[340004378,1728321032595,-752.17210597,0.0001069,2]
[340004379,1728321032606,-3395.65487606,0.0001069,2]
[340004380,1728321032615,-2500.0,0.0001069,2]
[340004381,1728321032625,-9758.7887,0.000107,2]
[340004382,1728321032634,-10297.42620254,0.000107,2]
[340004383,1728321032649,-845.87545876,0.000107,2]
[340004384,1728321032660,-1028.79,0.000107,2]
[340004385,1728321032671,-1249.78872132,0.000107,2]
[340004386,1728321032683,-3817.9092132,0.000107,2]
[340004387,1728321032695,-555.249,0.000107,2]
[340004389,1728321032710,-499.915646,0.000107,2]
[340004390,1728321032721,-3133.18062,0.000107,2]
[340004392,1728321032733,-1096.40924013,0.000107,2]
[340004394,1728321032743,-393.3952172,0.000107,2]
[340004395,1728321032754,-6246.33253183,0.000107,2]
[340004398,1728321032765,-9669.50989184,0.000107,2]
[340004400,1728321032777,-324.13761,0.000107,2]
[340004409,1728321038338,-200.0,0.00010647,2]
[340004410,1728321038347,-16487.71394718,0.000107,2]
[340004411,1728321038356,-150.0,0.00010712,2]
[340004412,1728321038457,-564.4,0.0001077,2]
[340004413,1728321038467,-499.99,0.0001077,2]
[340004414,1728321038476,-5538.08,0.0001077,2]
[340004415,1728321038485,-1088.43,0.0001077,2]
[340004416,1728321038494,-1491.02,0.0001077,2]
[340004417,1728321038503,-830.8,0.0001077,2]
[340004418,1728321038512,-1824.77,0.0001077,2]
[340004419,1728321038521,-299.99,0.0001077,2]
[340004420,1728321038531,-564.4,0.00010773,2]
[340004421,1728321038540,-564.4,0.00010776,2]
[340004422,1728321038549,-564.4,0.00010779,2]
[340004423,1728321038558,-564.4,0.00010782,2]
[340004424,1728321038567,-564.4,0.00010784,2]
[340004425,1728321038576,-5285.71,0.00010784,2]
[340004426,1728321038586,-564.4,0.00010787,2]
[340004427,1728321038594,-564.4,0.0001079,2]
[340004428,1728321038604,-52504.74599796,0.0001079,2]
[340004429,1728321038615,-4304.35392459,0.0001079,2]
[340004430,1728321038626,-35287.19177745,0.0001079,2]
[340004431,1728321038635,-564.4,0.00010793,2]
[340004432,1728321038645,-564.4,0.00010796,2]
[340004433,1728321038654,-564.4,0.00010799,2]
[340004434,1728321038663,-167.1292,0.000108,2]
[340004435,1728321038673,-564.4,0.00010801,2]
[340004436,1728321038682,-564.4,0.00010804,2]
[340004437,1728321038691,-564.4,0.00010807,2]
[340004438,1728321038699,-564.4,0.0001081,2]
[340004439,1728321038709,-564.4,0.00010813,2]
[340004440,1728321038718,-564.4,0.00010816,2]
[340004441,1728321038727,-564.4,0.00010818,2]
[340004442,1728321038736,-564.4,0.00010821,2]
[340004443,1728321038746,-564.4,0.00010824,2]
[340004444,1728321038755,-5152.614,0.00010877,2]
[340004445,1728321038765,-8770.2589964,0.00010899,2]
[340004446,1728321038774,-1322.655431,0.000109,2]
[340004447,1728321038783,-925.3018,0.000109,2]
[340004449,1728321038792,-2183.253,0.000109,2]
[340004451,1728321038802,-2500.0,0.000109,2]
[340004453,1728321038811,-170.65171345,0.000109,2]
[340004455,1728321038820,-162.76849564,0.000109,2]
[340004457,1728321038829,-1131.31482905,0.000109,2]
[340004459,1728321038839,-3605.36972638,0.000109,2]
[340004461,1728321038848,-1000.0,0.00010945,2]
[340004463,1728321038857,-1000.0,0.00010945,2]
[340004464,1728321038866,-1000.0,0.00010945,2]
[340004465,1728321038876,-1000.0,0.00010945,2]
[340004466,1728321038886,-856.29880475,0.00010945,2]
[340004467,1728321038902,-143.70119525,0.00010945,2]
[340004468,1728321038911,-1000.0,0.00010945,2]
[340004469,1728321038921,-1000.0,0.00010945,2]
[340004470,1728321038930,-1000.0,0.00010945,2]
[340004471,1728321038939,-1000.0,0.00010945,2]
[340004473,1728321038950,-585.4671,0.00010945,2]
[340004475,1728321038959,-391.67381475,0.00010958,2]
[340004477,1728321038968,-415.20367214,0.00010958,2]
[340004479,1728321038977,-273.63,0.00010959,2]
[340004481,1728321038986,-158.19,0.00010959,2]
[340004483,1728321038995,-176.34,0.00010959,2]
[340004484,1728321039004,-250.0,0.00010959,2]
[340004485,1728321039013,-270.55,0.00010959,2]
[340004486,1728321039023,-517.77,0.00010959,2]
[340004487,1728321039032,-150.0,0.00010959,2]
[340004488,1728321039041,-300.0,0.00010973,2]
[340004490,1728321039050,-346.2041808,0.00010973,2]
[340004492,1728321039059,-160.62147539,0.00010973,2]
[340004494,1728321039069,-544.82231316,0.00010973,2]
[340004496,1728321039078,-500.0,0.00010973,2]
[340004498,1728321039088,-597.23137212,0.00010973,2]
[340004500,1728321039097,-298.23634965,0.00010986,2]
[340004502,1728321039106,-153.58102654,0.00010999,2]
[340004504,1728321039115,-515.82247687,0.00010999,2]
[340004505,1728321039125,-571.20655122,0.00010999,2]
[340004507,1728321039135,-548.0,0.00011,2]
[340004509,1728321039145,-3470785.39783866,0.00011,2]
[340004511,1728321039156,-284591.66883889,0.00011,2]
[340004513,1728321039165,-2000.0,0.00011,2]
[340004515,1728321039174,-200.0,0.00011,2]
[340004517,1728321039183,-250.0,0.00011,2]
[340004519,1728321039193,-2000.0,0.00011,2]
[340004521,1728321039202,-200.0,0.00011,2]
[340004523,1728321039212,-200.0,0.00011,2]
[340004525,1728321039221,-12973.0653163,0.00011008,2]
[340004527,1728321039230,-91004.2148613,0.00011015,2]
[340004529,1728321039240,-5207.9285631,0.00011015,2]
[340004531,1728321039249,-200.0,0.00011023,2]
[340004533,1728321039264,-1000.0,0.00011084,2]
[340004535,1728321039273,-2000.0,0.0001111,2]
[340004537,1728321039282,-200.0,0.0001111,2]
[340004539,1728321039292,-2000.0,0.0001111,2]
[340004541,1728321039302,-200.0,0.0001111,2]
[340004543,1728321039311,-200.0,0.0001111,2]
[340004545,1728321039320,-199.48,0.0001113,2]
[340004547,1728321039329,-199.48,0.00011185,2]
[340004549,1728321039338,-2000.0,0.00011221,2]
[340004551,1728321039348,-200.0,0.00011221,2]
[340004552,1728321039357,-512.55826035,0.00011221,2]
[340004554,1728321039367,-200.0,0.00011221,2]
[340004556,1728321039378,-200.0,0.00011221,2]
[340004558,1728321039389,-27433.09,0.00011233,2]
[340004560,1728321039398,-2000.0,0.00011333,2]
[340004562,1728321039407,-200.0,0.00011333,2]
[340004564,1728321039416,-200.0,0.00011333,2]
[340004566,1728321039425,-200.0,0.00011333,2]
[340004568,1728321039434,-420.0,0.00011388,2]
[340004569,1728321039443,-2000.0,0.00011447,2]
[340004571,1728321039452,-200.0,0.00011447,2]
[340004573,1728321039461,-200.0,0.00011447,2]
[340004575,1728321039470,-176.34,0.00011507,2]
[340004577,1728321039480,-2751.0,0.00011507,2]
[340004579,1728321039489,-255.0,0.00011726,2]
[340004581,1728321039498,-511.37,0.00011741,2]
[340004583,1728321039507,-343.81273456,0.000119,2]
[340004585,1728321039517,-165.95,0.00012033,2]
[340004587,1728321039526,-176.34,0.00012055,2]
[340004589,1728321039536,-180.0,0.00012055,2]
[340004591,1728321039545,-200.0,0.00012248,2]
[340004593,1728321039554,-1000.0,0.00012315,2]
[340004595,1728321039563,-151.0,0.00012329,2]
[340004597,1728321039572,-167.0,0.00012445,2]
[340004599,1728321039581,-208.25,0.00012445,2]
[340004601,1728321039590,-587.0,0.00012522,2]
[340004603,1728321039599,-176.34,0.00012603,2]
[340004604,1728321039608,-1603.15553022,0.00012666,2]
[340004606,1728321039617,-668.5,0.00012717,2]
[340004608,1728321039626,-167.0,0.00012855,2]
[340004610,1728321039636,-433.0,0.00012859,2]
[340004612,1728321039646,-54790.32531688,0.0001287,2]
[340004639,1728321039927,-287.79590534,0.0001287,2]
[340004641,1728321039938,-667.76472037,0.0001287,2]
[340004643,1728321039949,-326.82220256,0.0001287,2]
[340004647,1728321039973,-15382.51737801,0.0001287,2]
[340004651,1728321040022,250.0,9.871e-05,2]
[340004692,1728321040381,-251.119,0.0001287,2]
[340004698,1728321040439,-300.0,0.0001287,2]
[340004952,1728321043412,-310.352533,0.000109,2]
[340004954,1728321043422,-329.237467,0.0001287,2]
[340004956,1728321043435,-900.0,0.0001287,2]
[340005225,1728321046246,-162.16,0.00010959,2]
[340005228,1728321046259,-73141.76463623,0.0001287,2]
[340005230,1728321046269,-300.0,0.00012877,2]
[340005233,1728321046278,-300.0,0.00012877,2]
[340005236,1728321046288,-98769.38472335,0.00012899,2]
[340005237,1728321046297,-151.0,0.00012899,2]
[340005239,1728321046310,-151.0,0.00012899,2]
[340005241,1728321046319,-400.08781325,0.00013,2]
[340005243,1728321046330,-300.0,0.00013,2]
[340005245,1728321046340,-511.37,0.00013046,2]
[340005247,1728321046350,-176.34,0.00013151,2]
[340005249,1728321046360,-167.0,0.00013266,2]
[340005251,1728321046370,-165.95,0.0001331,2]
[340005253,1728321046379,-150.0,0.00013448,2]
[340005255,1728321046388,-150.0,0.0001345,2]
[340005257,1728321046400,-150.0,0.0001345,2]
[340005259,1728321046409,-1500.0,0.00013454,2]
[340005261,1728321046417,-1500.0,0.00013455,2]
[340005262,1728321046427,-150.0,0.00013455,2]
[340005264,1728321046436,-150.0,0.00013461,2]
[340005266,1728321046445,-150.0,0.00013463,2]
[340005268,1728321046454,-150.0,0.00013464,2]
[340005270,1728321046463,-150.0,0.00013464,2]
[340005272,1728321046473,-150.0,0.00013466,2]
[340005274,1728321046482,-150.0,0.00013469,2]
[340005276,1728321046491,-150.0,0.00013471,2]
[340005278,1728321046500,-150.0,0.00013471,2]
[340005280,1728321046510,-150.0,0.00013472,2]
[340005282,1728321046519,-200.0,0.00013473,2]
[340005284,1728321046528,-150.0,0.00013474,2]
[340005285,1728321046537,-150.0,0.00013476,2]
[340005287,1728321046547,-150.0,0.0001348,2]
[340005289,1728321046556,-1500.0,0.00013482,2]
[340005291,1728321046565,-150.0,0.00013482,2]
[340005293,1728321046574,-150.0,0.00013483,2]
[340005295,1728321046584,-150.0,0.00013487,2]
[340005297,1728321046594,-150.0,0.00013488,2]
[340005299,1728321046605,-150.0,0.00013488,2]
[340005301,1728321046614,-150.0,0.0001349,2]
[340005303,1728321046623,-150.0,0.0001349,2]
[340005305,1728321046632,-150.0,0.00013494,2]
[340005307,1728321046643,-150.0,0.00013495,2]
[340005309,1728321046652,-150.0,0.00013497,2]
[340005311,1728321046662,-150.0,0.000135,2]
[340005312,1728321046671,-150.0,0.000135,2]
[340005314,1728321046680,-150.0,0.00013502,2]
[340005316,1728321046689,-150.0,0.00013508,2]
[340005318,1728321046698,-150.0,0.00013508,2]
[340005320,1728321046708,-150.0,0.0001351,2]
[340005322,1728321046718,-150.0,0.00013512,2]
[340005324,1728321046727,-150.0,0.00013515,2]
[340005326,1728321046736,-150.0,0.00013516,2]
[340005328,1728321046745,-150.0,0.00013517,2]
[340005330,1728321046754,-150.0,0.00013517,2]
[340005340,1728321046846,-150.0,0.00013517,2]
[340005342,1728321046857,-150.0,0.00013518,2]
[340005344,1728321046866,-1500.0,0.00013519,2]
[340005346,1728321046876,-150.0,0.00013521,2]
[340005348,1728321046885,-150.0,0.00013527,2]
[340005350,1728321046896,-150.0,0.00013527,2]
[340005352,1728321046905,-150.0,0.00013529,2]
[340005354,1728321046915,-150.0,0.0001353,2]
[340005356,1728321046924,-150.0,0.0001353,2]
[340005358,1728321046933,-150.0,0.00013533,2]
[340005360,1728321046943,-1500.0,0.00013538,2]
[340005362,1728321046952,-150.0,0.00013539,2]
[340005364,1728321046961,-828.86219362,0.0001354,2]
[340005366,1728321046970,-150.0,0.00013543,2]
[340005368,1728321046979,-1000.0,0.00013547,2]
[340005370,1728321046989,-150.0,0.0001355,2]
[340005372,1728321046998,-150.0,0.00013551,2]
[340005374,1728321047008,-1500.0,0.00013553,2]
[340005376,1728321047017,-150.0,0.00013555,2]
[340005378,1728321047027,-1500.0,0.00013555,2]
[340005380,1728321047035,-1500.0,0.00013556,2]
[340005382,1728321047044,-150.0,0.0001356,2]
[340005384,1728321047053,-150.0,0.00013561,2]
[340005385,1728321047063,-1383.16403175,0.00013561,2]
[340005387,1728321047072,-1500.0,0.00013563,2]
[340005389,1728321047081,-150.0,0.00013564,2]
[340005391,1728321047090,-1500.0,0.00013565,2]
[340005392,1728321047099,-150.0,0.00013566,2]
[340005394,1728321047108,-150.0,0.0001357,2]
[340005395,1728321047117,-150.0,0.00013572,2]
[340005397,1728321047126,-150.0,0.00013572,2]
[340005399,1728321047135,-150.0,0.00013573,2]
[340005400,1728321047145,-150.0,0.00013574,2]
[340005402,1728321047155,-150.0,0.00013575,2]
[340005403,1728321047163,-150.0,0.00013577,2]
[340005405,1728321047172,-150.0,0.00013578,2]
[340005406,1728321047182,-150.0,0.00013581,2]
[340005408,1728321047191,-150.0,0.00013581,2]
[340005410,1728321047200,-150.0,0.00013583,2]
[340005411,1728321047208,-1500.0,0.00013587,2]
[340005413,1728321047217,-150.0,0.0001359,2]
[340005414,1728321047226,-150.0,0.00013592,2]
[340005416,1728321047235,-150.0,0.00013592,2]
[340005418,1728321047245,-150.0,0.00013598,2]
[340005419,1728321047256,-150.0,0.00013599,2]
[340005421,1728321047266,-5071.0,0.000136,2]
[340005423,1728321047275,-150.0,0.00013601,2]
[340005425,1728321047284,-1500.0,0.00013601,2]
[340005426,1728321047294,-150.0,0.00013602,2]
[340005428,1728321047304,-150.0,0.00013605,2]
[340005430,1728321047313,-150.0,0.00013605,2]
[340005431,1728321047322,-150.0,0.00013605,2]
[340005433,1728321047331,-150.0,0.00013606,2]
[340005435,1728321047341,-150.0,0.00013607,2]
[340005436,1728321047351,-150.0,0.00013613,2]
[340005438,1728321047362,-150.0,0.00013613,2]
[340005439,1728321047371,-1500.0,0.00013618,2]
[340005441,1728321047380,-150.0,0.00013619,2]
[340005443,1728321047389,-150.0,0.00013621,2]
[340005445,1728321047400,-150.0,0.00013624,2]
[340005447,1728321047409,-150.0,0.00013626,2]
[340005448,1728321047418,-150.0,0.00013631,2]
[340005450,1728321047427,-1500.0,0.00013632,2]
[340005452,1728321047436,-150.0,0.00013634,2]
[340005453,1728321047445,-150.0,0.00013635,2]
[340005455,1728321047454,-150.0,0.00013635,2]
[340005457,1728321047463,-150.0,0.00013638,2]
[340005458,1728321047472,-150.0,0.00013639,2]
[340005460,1728321047481,-150.0,0.0001364,2]
[340005462,1728321047490,-150.0,0.00013652,2]
[340005463,1728321047499,-150.0,0.00013655,2]
[340005465,1728321047508,-150.0,0.00013656,2]
[340005467,1728321047517,-150.0,0.00013659,2]
[340005469,1728321047526,-150.0,0.00013659,2]
[340005470,1728321047535,-150.0,0.00013663,2]
[340005472,1728321047544,-150.0,0.00013663,2]
[340005474,1728321047553,-150.0,0.00013664,2]
[340005476,1728321047562,-150.0,0.00013665,2]
[340005477,1728321047572,-150.0,0.00013668,2]
[340005479,1728321047581,-150.0,0.0001367,2]
[340005481,1728321047590,-150.0,0.00013671,2]
[340005482,1728321047599,-1500.0,0.00013671,2]
[340005484,1728321047608,-167.0,0.00013677,2]
[340005486,1728321047617,-150.0,0.00013679,2]
[340005487,1728321047627,-150.0,0.00013679,2]
[340005489,1728321047637,-150.0,0.0001368,2]
[340005491,1728321047647,-150.0,0.0001368,2]
[340005493,1728321047656,-150.0,0.0001368,2]
[340005495,1728321047665,-150.0,0.00013681,2]
[340005496,1728321047674,-150.0,0.00013684,2]
[340005498,1728321047683,-150.0,0.00013686,2]
[340005500,1728321047693,-1500.0,0.00013686,2]
[340005502,1728321047702,-150.0,0.00013687,2]
[340005503,1728321047711,-338.89021828,0.00013694,2]
[340005505,1728321047720,-150.0,0.00013695,2]
[340005507,1728321047730,-150.0,0.00013697,2]
[340005509,1728321047739,-200.0,0.00013699,2]
[340005511,1728321047748,-2021.21,0.000137,2]
[340005512,1728321047757,-150.0,0.000137,2]
[340005514,1728321047766,-1500.0,0.000137,2]
[340005516,1728321047775,-150.0,0.00013703,2]
[340005518,1728321047784,-150.0,0.00013703,2]
[340005520,1728321047793,-1500.0,0.00013703,2]
[340005522,1728321047803,-150.0,0.00013705,2]
[340005523,1728321047812,-150.0,0.00013707,2]
[340005525,1728321047822,-150.0,0.00013709,2]
[340005527,1728321047831,-150.0,0.00013717,2]
[340005529,1728321047841,-150.0,0.00013718,2]
[340005531,1728321047850,-150.0,0.0001372,2]
[340005532,1728321047859,-150.0,0.00013722,2]
[340005534,1728321047867,-823.0,0.0001377,2]
[340005536,1728321047876,-403.18,0.00013793,2]
[340005538,1728321047885,-318.84512929,0.00013799,2]
[340005540,1728321047895,-151.0,0.000138,2]
[340005541,1728321047904,-151.0,0.000138,2]
[340005543,1728321047913,-151.0,0.000138,2]
[340005545,1728321047924,-151.0,0.000138,2]
[340005547,1728321047933,-151.0,0.000138,2]
[340005549,1728321047943,-151.0,0.000138,2]
[340005551,1728321047952,-151.0,0.000138,2]
[340005553,1728321047962,-151.0,0.000138,2]
[340005554,1728321047971,-151.0,0.000138,2]
[340005556,1728321047980,-151.0,0.000138,2]
[340005558,1728321047989,-151.0,0.000138,2]
[340005560,1728321047998,-279.504056,0.000138,2]
[340005562,1728321048008,-151.0,0.000138,2]
[340005564,1728321048017,-151.0,0.000138,2]
[340005565,1728321048026,-151.880381,0.000138,2]
[340005567,1728321048036,-151.0,0.000138,2]
[340005569,1728321048045,-151.0,0.000138,2]
[340005571,1728321048055,-151.0,0.000138,2]
[340005573,1728321048063,-1153.141168,0.000138,2]
[340005575,1728321048073,-1153.141168,0.000138,2]
[340005576,1728321048082,-344041.717368,0.000138,3]
[340005578,1728321048091,-151.0,0.000138,2]
[340005580,1728321048100,-2406.466806,0.000138,2]
[340005588,1728321048179,-2406.466806,0.000138,2]
[340005590,1728321048189,-10000.0,0.000138,2]
[340005592,1728321048198,-10000.0,0.000138,2]
[340005594,1728321048207,-400.0000006,0.000139,3]
[340005596,1728321048216,-1000.0,0.00014008,2]
[340005598,1728321048226,-499.14227078,0.00014008,2]
[340005599,1728321048235,-167.0,0.00014088,2]
[340005601,1728321048244,-662.0,0.0001411,2]
[340005603,1728321048253,-1000.0,0.00014292,2]
[340005605,1728321048266,-1000.0,0.00014292,2]
[340005607,1728321048275,-1000.0,0.00014292,2]
[340005609,1728321048284,-1000.0,0.00014292,2]
[340005610,1728321048293,-1000.0,0.00014292,2]
[340005612,1728321048304,-1000.0,0.00014292,2]
[340005614,1728321048313,-1000.0,0.00014292,2]
[340005616,1728321048322,-1000.0,0.00014292,2]
[340005617,1728321048333,-1000.0,0.00014292,2]
[340005618,1728321048342,-1020.45359835,0.00014292,2]
[340005619,1728321048352,-11514.0,0.000143,3]
[340005620,1728321048362,-511.37,0.00014351,2]
[340005621,1728321048371,-8770.25899639,0.00014383,2]
[340005622,1728321048380,-1153.141168,0.00014383,2]
[340005623,1728321048389,-1153.141168,0.00014383,2]
[340005624,1728321048399,-167.0,0.00014499,2]
[340005625,1728321048409,-1042.0,0.000145,2]
[340005626,1728321048419,-153.066387,0.00014567,2]
[340005627,1728321048429,-151.0,0.00014567,2]
[340005628,1728321048438,-151.0,0.00014567,2]
[340005629,1728321048447,-151.0,0.00014567,2]
[340005630,1728321048456,-151.0,0.00014567,2]
[340005631,1728321048466,-151.0,0.00014567,2]
[340005632,1728321048475,-2406.466806,0.00014567,2]
[340005633,1728321048484,-2406.466806,0.00014567,2]
[340005634,1728321048493,-10000.0,0.00014567,2]
[340005635,1728321048503,-10000.0,0.00014567,2]
[340005636,1728321048512,-165.95,0.00014586,2]
[340005637,1728321048521,-200.0,0.00014697,2]
[340005638,1728321048531,-1000.0,0.00014778,2]
[340005639,1728321048540,-217.4,0.00014786,2]
[340005640,1728321048550,-668.5,0.00014965,2]
[340005641,1728321048559,-5392.0,0.00015,2]
[340005642,1728321048569,-710.0,0.00015,2]
[340005643,1728321048578,-350.0,0.00015,2]
[340005644,1728321048587,-428.0,0.00015,2]
[340005645,1728321048597,-11514.0,0.00015,5]
[340005646,1728321048606,-1131.31482901,0.00015043,2]
[340005647,1728321048615,-150.64,0.00015068,2]